bitfinex-derivatives/quotes_SOLF0:USTF0_20251228
["timestamp","ask_amount","ask_price","bid_price","bid_amount"]
[1766880002376,0.00213192,124.75,124.72,2.5811567]
[1766880003790,27.75,124.86,124.72,2.5811567]
[1766880003791,27.75,124.81,124.72,2.5811567]
[1766880003983,27.75,124.81,124.72,2.52]
[1766880004770,0.05911823,124.78,124.75,0.05791543]
[1766880004976,27.80911823,124.78,124.75,0.05791543]
[1766880006982,0.05911823,124.78,124.75,0.05791543]
[1766880007286,0.05911823,124.78,124.75,2.62791543]
[1766880009489,27.75,124.8,124.75,2.62791543]
[1766880009788,34.9656,124.82,124.75,2.62791543]
[1766880010485,0.05414282,124.8,124.75,2.62791543]
[1766880010691,0.00414282,124.8,124.75,2.62791543]
[1766880012995,27.75,124.86,124.75,2.62791543]
[1766880013292,27.75,124.86,124.75,2.57]
[1766880013791,27.75,124.86,124.78,2.54]
[1766880014090,0.00176783,124.82,124.8,2.54]
[1766880014289,7.2127,124.87,124.8,2.54]
[1766880015095,0.0584829,124.85,124.82,0.06165624]
[1766880015296,0.0584829,124.85,124.82,2.56165624]
[1766880018998,0.0584829,124.85,124.82,2.53165624]
[1766880019500,0.0584829,124.85,124.82,0.00165624]
[1766880019501,29.9284829,124.85,124.82,0.00165624]
[1766880020097,0.0584829,124.85,124.82,0.00165624]
[1766880036618,0.0584829,124.85,124.82,2.58165624]
[1766880038627,0.0584829,124.85,124.82,0.00165624]
[1766880041622,0.0584829,124.85,124.83,7.2145]
[1766880044936,0.0584829,124.85,124.82,0.00165624]
[1766880045523,0.0584829,124.85,124.82,7.21685624]
[1766880045728,29.6284829,124.85,124.7,14.4446]
[1766880045933,29.57,124.85,124.7,109.0646]
[1766880046142,29.57,124.85,124.74,0.03]
[1766880046830,29.6236893,124.81,124.78,0.05687159]
[1766880047031,29.62240531,124.81,124.78,0.05381334]
[1766880051234,0.05240531,124.81,124.78,0.05381334]
[1766880057646,30.24,124.86,124.79,0.2]
[1766880058640,0.05510605,124.84,124.81,0.05877975]
[1766880061845,0.05510605,124.84,124.77,7.2179]
[1766880061846,30.29510605,124.84,124.77,7.2179]
[1766880062046,30.24,124.84,124.77,7.4679]
[1766880062644,30.30119908,124.82,124.77,7.2179]
[1766880063742,30.30119908,124.82,124.78,0.05315597]
[1766880067742,30.30119908,124.82,124.78,0.00315597]
[1766880073458,0.06119908,124.82,124.78,0.49315597]
[1766880074457,30.30119908,124.82,124.78,0.00315597]
[1766880075764,0.06119908,124.82,124.78,0.53315597]
[1766880076159,30.47,124.84,124.78,0.53315597]
[1766880076350,30.47,124.84,124.79,7.7569]
[1766880077259,0.05656457,124.83,124.79,7.7569]
[1766880084768,0.05656457,124.83,124.79,7.2169]
[1766880084963,0.05656457,124.83,124.79,7.8269]
[1766880093475,0.05656457,124.83,124.8,0.67]
[1766880094274,0.05656457,124.83,124.79,7.2169]
[1766880094477,0.05656457,124.83,124.79,7.8869]
[1766880098279,30.47,124.89,124.8,0.69]
[1766880099469,0.05105373,124.86,124.83,0.05104902]
[1766880102473,0.05105373,124.86,124.83,0.69104902]
[1766880103681,0.05105373,124.86,124.83,7.90554902]
[1766880104480,30.47,124.89,124.83,7.90554902]
[1766880105375,30.47,124.89,124.84,0.57]
[1766880105570,0.05517534,124.88,124.84,0.57]
[1766880106473,36.44173529,124.96,124.85,0.52]
[1766880106678,27.84,124.95,124.85,0.52]
[1766880107479,0.05763942,124.91,124.89,0.06097722]
[1766880107669,0.05617856,124.91,124.89,0.05482232]
[1766880108380,27.89617856,124.91,124.85,0.53]
[1766880108688,27.84,124.91,124.85,0.53]
[1766880109388,0.05851198,124.89,124.87,0.05370571]
[1766880109886,27.89851198,124.89,124.82,7.7951]
[1766880110085,27.84,124.89,124.83,0.63]
[1766880110798,0.05310553,124.87,124.85,0.0591731]
[1766880113188,27.84,124.89,124.85,0.0591731]
[1766880113681,1.39358869,124.99,124.85,0.7091731]
[1766880113682,27.84,124.92,124.85,0.7091731]
[1766880113882,27.84,124.92,124.85,0.65]
[1766880114085,27.84,124.92,124.87,0.05966972]
[1766880114388,0.05861213,124.9,124.87,0.05966972]
[1766880114583,0.05861213,124.9,124.87,0.05350428]
[1766880114790,27.89861213,124.9,124.87,0.05350428]
[1766880115382,0.05861213,124.9,124.87,0.05350428]
[1766880115988,29.99861213,124.9,124.87,0.05350428]
[1766880124994,29.99861213,124.9,124.87,0.00350428]
[1766880126185,29.94,124.88,124.87,0.00350428]
[1766880127190,31.54,124.88,124.87,0.00350428]
[1766880130901,29.94,124.88,124.87,0.00350428]
[1766880132602,29.99861213,124.9,124.87,0.00350428]
[1766880137605,30.75,124.88,124.75,3.42470949]
[1766880138811,30.75,124.82,124.75,3.42470949]
[1766880139710,0.05658464,124.8,124.77,0.05059919]
[1766880139914,30.80658464,124.8,124.77,0.00059919]
[1766880150026,30.80658464,124.8,124.75,0.00530868]
[1766880151625,38.02338464,124.8,124.75,0.00530868]
[1766880152219,38.02338464,124.8,124.76,0.00156426]
[1766880153631,30.75,124.77,124.7,4.52]
[1766880154631,30.81002229,124.75,124.7,4.52]
[1766880156430,30.81002229,124.75,124.68,4.55]
[1766880156625,0.05644348,124.73,124.68,4.55]
[1766880160432,7.2178,124.78,124.68,4.55]
[1766880160433,30.75,124.76,124.68,4.55]
[1766880160829,30.75,124.79,124.69,4.59]
[1766880161327,0.05380696,124.75,124.73,0.05644348]
[1766880161631,30.75,124.77,124.7,4.6]
[1766880162431,0.06123336,124.75,124.7,4.6]
[1766880167038,28.64123336,124.75,124.69,7.2227]
[1766880167340,28.64123336,124.75,124.7,4.71]
[1766880172742,28.64123336,124.75,124.68,4.76]
[1766880172937,0.05318277,124.73,124.68,4.76]
[1766880175543,0.05318277,124.73,124.7,4.78]
[1766880178244,0.05318277,124.73,124.69,12.0228]
[1766880183249,0.05318277,124.73,124.69,4.8]
[1766880184151,29.25318277,124.73,124.67,4.84]
[1766880184947,29.25318277,124.73,124.68,2.31633183]
[1766880185851,29.25318277,124.73,124.68,7.16633183]
[1766880189757,0.05318277,124.73,124.69,4.87]
[1766880189960,0.05318277,124.73,124.7,2.31633183]
[1766880191154,0.05318277,124.73,124.69,4.87]
[1766880191861,0.05318277,124.73,124.7,2.31633183]
[1766880192854,0.05318277,124.73,124.69,4.87]
[1766880197975,30.42318277,124.73,124.66,2.31633183]
[1766880198268,30.42553304,124.71,124.66,7.25633183]
[1766880202570,0.05553304,124.71,124.66,7.25633183]
[1766880204573,30.42553304,124.71,124.66,7.25633183]
[1766880207978,30.42553304,124.71,124.68,1.48279078]
[1766880209365,30.42553304,124.71,124.63,5.0]
[1766880209573,30.37,124.71,124.66,0.05533077]
[1766880209974,31.85279078,124.71,124.66,0.05533077]
[1766880210782,30.37,124.71,124.66,0.05533077]
[1766880213587,37.5921,124.71,124.66,0.05533077]
[1766880213883,39.07489078,124.71,124.66,0.05533077]
[1766880214084,30.37,124.71,124.66,0.05533077]
[1766880214284,30.37,124.68,124.62,1.48279078]
[1766880214992,30.37,124.68,124.63,1.48279078]
[1766880215286,30.43099953,124.67,124.64,0.0043517]
[1766880222293,0.06099953,124.67,124.65,1.48279078]
[1766880222787,0.06099953,124.67,124.66,1.48279078]
[1766880222977,30.37,124.69,124.66,1.48279078]
[1766880223584,30.37,124.69,124.64,6.6943517]
[1766880223793,30.37,124.69,124.66,1.48279078]
[1766880223992,0.06006282,124.68,124.66,1.48279078]
[1766880224992,0.06006282,124.68,124.65,1.48279078]
[1766880226386,31.15006282,124.68,124.64,1.48714248]
[1766880227792,31.15006282,124.68,124.64,0.0043517]
[1766880228801,38.37366282,124.68,124.64,0.0043517]
[1766880229498,30.98,124.66,124.61,6.72]
[1766880229697,30.98,124.66,124.63,9.078e-05]
[1766880229891,30.98,124.66,124.62,1.48279078]
[1766880230198,38.2049,124.66,124.62,1.48279078]
[1766880230697,0.05292075,124.65,124.62,1.48279078]
[1766880231193,31.03292075,124.65,124.62,1.48279078]
[1766880231592,31.03292075,124.65,124.62,1.54031632]
[1766880235098,31.03292075,124.65,124.62,0.05752554]
[1766880237898,31.03292075,124.65,124.62,1.54031632]
[1766880238096,31.03292075,124.65,124.62,0.05752554]
[1766880238395,31.03292075,124.65,124.59,6.78]
[1766880238600,31.03292075,124.65,124.61,1.48279078]
[1766880239803,31.03292075,124.65,124.6,1.48279078]
[1766880240597,31.03292075,124.65,124.61,0.05529745]
[1766880242700,31.03292075,124.65,124.6,1.48279078]
[1766880242899,31.03292075,124.65,124.59,1.48279078]
[1766880243197,30.98,124.65,124.59,1.48279078]
[1766880243701,31.03422642,124.63,124.59,1.48279078]
[1766880244300,31.03422642,124.63,124.57,7.09]
[1766880244603,31.03422642,124.63,124.59,1.48279078]
[1766880246003,31.03422642,124.63,124.6,1.48279078]
[1766880246204,0.05422642,124.63,124.61,1.48279078]
[1766880248006,0.05422642,124.63,124.62,1.48279078]
[1766880248203,0.05422642,124.63,124.61,1.48279078]
[1766880248508,0.05422642,124.63,124.59,7.11]
[1766880248711,0.05422642,124.63,124.61,1.48279078]
[1766880252411,31.03422642,124.63,124.6,1.48279078]
[1766880253211,31.03422642,124.63,124.58,7.14]
[1766880253511,31.03422642,124.63,124.6,1.48279078]
[1766880254314,0.05422642,124.63,124.6,1.48279078]
[1766880254610,0.05422642,124.63,124.61,1.48279078]
[1766880255416,0.05422642,124.63,124.6,1.48279078]
[1766880261522,0.05422642,124.63,124.59,7.15]
[1766880261819,0.05422642,124.63,124.6,1.48279078]
[1766880264130,0.00422642,124.63,124.61,8.66279078]
[1766880264322,36.7145,124.67,124.62,8.66279078]
[1766880264612,36.7145,124.67,124.62,7.18]
[1766880265211,0.05331824,124.66,124.63,0.05204758]
[1766880271432,29.54331824,124.66,124.63,0.05204758]
[1766880275343,36.76811824,124.66,124.63,0.05204758]
[1766880277036,36.7154,124.65,124.63,0.00204758]
[1766880279343,29.49,124.65,124.63,0.00204758]
[1766880304363,30.22,124.64,124.63,0.00204758]
[1766880304568,34.85807744,124.64,124.63,0.00204758]
[1766880304776,36.45807744,124.64,124.63,0.00204758]
[1766880305162,34.13903872,124.64,124.63,0.00204758]
[1766880305459,30.22,124.64,124.63,0.00204758]
[1766880306568,32.53903872,124.64,124.63,0.00204758]
[1766880307362,30.22,124.64,124.63,0.00204758]
[1766880308770,30.27331824,124.66,124.63,0.00204758]
[1766880311168,37.4458,124.64,124.63,0.00204758]
[1766880316262,30.22,124.64,124.63,0.00204758]
[1766880316569,7.27831824,124.66,124.63,0.00204758]
[1766880316570,37.19831824,124.66,124.63,0.00204758]
[1766880319971,7.2255,124.65,124.63,0.00204758]
[1766880320162,37.1455,124.65,124.63,0.00204758]
[1766880337482,29.92,124.65,124.63,0.00204758]
[1766880341876,29.92,124.64,124.63,0.00204758]
[1766880360094,31.40458754,124.64,124.63,0.00204758]
[1766880360789,29.92,124.64,124.63,0.00204758]
[1766880361098,31.40458754,124.64,124.63,0.00204758]
[1766880361299,126.14458754,124.64,124.63,0.00204758]
[1766880363797,29.92,124.64,124.63,0.00204758]
[1766880363997,126.14458754,124.64,124.63,0.00204758]
[1766880366700,7.2253,124.65,124.63,0.00204758]
[1766880367011,37.7353,124.65,124.63,0.00204758]
[1766880371312,1.48458754,124.64,124.58,7.48495157]
[1766880371508,31.99458754,124.61,124.56,7.49015366]
[1766880371808,30.51,124.61,124.56,17.61]
[1766880372411,37.7377,124.61,124.56,17.61]
[1766880372609,30.56335546,124.6,124.54,19.11458754]
[1766880373202,0.05335546,124.6,124.56,17.66]
[1766880377512,30.31335546,124.6,124.54,17.77]
[1766880377714,0.05335546,124.6,124.56,17.77]
[1766880377906,31.74458754,124.62,124.56,17.77]
[1766880378107,0.05757949,124.59,124.56,17.77]
[1766880379004,37.4868,124.63,124.56,19.31434587]
[1766880379210,38.97138754,124.63,124.5,9.97108567]
[1766880379611,38.97138754,124.63,124.56,1.48458754]
[1766880379919,31.74458754,124.62,124.5,9.97108567]
[1766880380117,31.74458754,124.62,124.55,1.48458754]
[1766880380308,0.05879912,124.6,124.55,1.48458754]
[1766880381219,0.05879912,124.6,124.56,0.11]
[1766880384114,30.31879912,124.6,124.56,0.11]
[1766880386021,0.05879912,124.6,124.56,0.11]
[1766880389220,126.50458754,124.64,124.57,2.00458754]
[1766880389420,38.96958754,124.66,124.59,0.52]
[1766880389727,30.26,124.65,124.59,0.52]
[1766880390132,0.0565974,124.63,124.61,0.05822154]
[1766880396935,30.3165974,124.63,124.57,0.9]
[1766880404746,32.95998944,124.62,124.57,0.9]
[1766880405952,30.64,124.62,124.57,0.9]
[1766880407449,30.64,124.62,124.55,8.7506]
[1766880407744,0.0505071,124.6,124.56,1.52]
[1766880409049,30.3305071,124.6,124.56,1.52]
[1766880410247,30.3305071,124.6,124.54,1.65]
[1766880413661,32.65049654,124.6,124.54,1.65]
[1766880417969,30.3305071,124.6,124.54,1.65]
[1766880421266,32.65049654,124.6,124.53,9.55198944]
[1766880421564,32.65049654,124.6,124.52,2.15]
[1766880421565,30.3305071,124.6,124.52,2.31998944]
[1766880421762,30.28,124.6,124.55,2.15]
[1766880422758,30.33136491,124.59,124.56,0.05204825]
[1766880424462,30.33136491,124.59,124.56,0.00204825]
[1766880436470,2.31998944,124.58,124.56,0.00204825]
[1766880436680,32.15,124.57,124.51,2.78]
[1766880437569,0.05256155,124.55,124.51,2.78]
[1766880439180,32.20256155,124.55,124.48,7.48183061]
[1766880439473,32.20256155,124.55,124.49,10.35]
[1766880442285,34.52255099,124.55,124.47,10.5]
[1766880442577,32.2013238,124.52,124.46,17.7359]
[1766880442779,32.2013238,124.52,124.47,2.31998944]
[1766880444182,32.2013238,124.52,124.46,10.5]
[1766880444389,32.2013238,124.52,124.46,12.81998944]
[1766880445079,32.2013238,124.52,124.46,10.5]
[1766880447287,32.2013238,124.52,124.46,12.81998944]
[1766880447684,32.2013238,124.52,124.46,10.5]
[1766880448388,32.2013238,124.52,124.46,12.81998944]
[1766880448890,32.2013238,124.52,124.44,10.76]
[1766880449184,32.2013238,124.52,124.43,14.71953061]
[1766880449185,32.15,124.52,124.45,13.07998944]
[1766880449391,32.15,124.52,124.45,10.76]
[1766880449887,32.15,124.52,124.45,13.07998944]
[1766880450088,0.05340437,124.5,124.47,0.05917403]
[1766880450890,32.20340437,124.5,124.47,0.05917403]
[1766880451684,0.05340437,124.5,124.47,0.05917403]
[1766880451903,32.20340437,124.5,124.47,0.05917403]
[1766880452789,32.20340437,124.5,124.47,1.5470858]
[1766880453176,32.20340437,124.5,124.47,0.05917403]
[1766880466796,8.72081177,124.52,124.48,1.48791177]
[1766880466797,32.83,124.52,124.48,1.48791177]
[1766880467182,32.83,124.52,124.47,1.5470858]
[1766880467898,0.05623139,124.51,124.48,1.48791177]
[1766880471198,0.05623139,124.51,124.47,1.5470858]
[1766880473299,0.05623139,124.51,124.47,0.05917403]
[1766880480803,31.32623139,124.51,124.47,0.05917403]
[1766880483009,32.81414316,124.51,124.47,0.05917403]
[1766880502719,31.32623139,124.51,124.47,0.05917403]
[1766880510927,32.81414316,124.51,124.47,0.05917403]
[1766880511132,32.81414316,124.51,124.43,9.98203705]
[1766880511133,31.86,124.49,124.43,9.98203705]
[1766880511331,31.86,124.49,124.42,32.07994882]
[1766880511529,31.86,124.49,124.43,1.48791177]
[1766880512031,0.05166189,124.47,124.45,0.05416331]
[1766880516135,31.86,124.46,124.45,0.00416331]
[1766880516836,0.05166189,124.47,124.45,0.00416331]
[1766880523741,31.91166189,124.47,124.45,0.00416331]
[1766880525942,2.32565695,124.52,124.45,2.32982026]
[1766880525943,31.57,124.49,124.45,2.32982026]
[1766880527056,0.06083542,124.48,124.45,2.32982026]
[1766880529155,0.06083542,124.48,124.45,0.00416331]
[1766880547164,30.0,124.51,124.45,21.21416331]
[1766880547368,30.0,124.51,124.45,21.21]
[1766880547961,30.0,124.51,124.46,2.32565695]
[1766880548268,0.05408209,124.5,124.47,0.05155906]
[1766880553368,30.05408209,124.5,124.47,0.05155906]
[1766880553571,30.05408209,124.5,124.47,0.00155906]
[1766880576282,30.05408209,124.5,124.47,1.48945695]
[1766880595500,30.05408209,124.5,124.47,0.00155906]
[1766880599298,30.05408209,124.5,124.48,1.48789789]
[1766880599500,30.05408209,124.5,124.47,1.48945695]
[1766880608406,7.232,124.54,124.48,1.48789789]
[1766880608608,2.71305943,124.56,124.53,1.48789789]
[1766880608808,2.71305943,124.56,124.5,8.97572709]
[1766880609108,4.20095732,124.56,124.5,1.48789789]
[1766880609308,0.05736691,124.54,124.5,1.48789789]
[1766880610404,31.40736691,124.54,124.51,0.05102732]
[1766880611013,31.40736691,124.54,124.51,1.53892521]
[1766880611512,34.06305943,124.56,124.52,1.48789789]
[1766880612612,0.052353,124.55,124.52,1.48789789]
[1766880613607,0.052353,124.55,124.53,1.48789789]
[1766880613810,31.35,124.58,124.54,1.48789789]
[1766880614311,31.35,124.58,124.52,22.75]
[1766880614312,31.35,124.58,124.53,1.48789789]
[1766880614808,30.63676715,124.57,124.54,0.05512445]
[1766880615009,30.63676715,124.57,124.54,1.54302234]
[1766880616307,30.63676715,124.57,124.55,1.48789789]
[1766880616809,30.63676715,124.57,124.54,0.05512445]
[1766880617010,30.63676715,124.57,124.55,1.48789789]
[1766880618414,30.63676715,124.57,124.54,0.05512445]
[1766880618617,30.63676715,124.57,124.54,1.54302234]
[1766880621722,0.05676715,124.57,124.55,1.48789789]
[1766880626215,0.05676715,124.57,124.54,1.54302234]
[1766880629413,30.58,124.6,124.56,1.48789789]
[1766880629918,30.58,124.6,124.53,1.48789789]
[1766880629919,32.06789789,124.6,124.53,1.48789789]
[1766880630608,30.63273814,124.58,124.55,0.06116126]
[1766880632616,32.12063603,124.58,124.55,0.00116126]
[1766880635926,30.63273814,124.58,124.55,0.00116126]
[1766880675650,0.05273814,124.58,124.55,2.32367999]
[1766880677142,33.75,124.6,124.55,2.32367999]
[1766880677542,33.75,124.6,124.55,0.00116126]
[1766880678255,33.80994827,124.59,124.55,0.00116126]
[1766880681550,41.03884827,124.59,124.55,0.00116126]
[1766880689160,33.80994827,124.59,124.55,0.00116126]
[1766880692353,33.80994827,124.59,124.55,2.32367999]
[1766880696060,33.80994827,124.59,124.55,1.48676908]
[1766880700965,0.05994827,124.59,124.57,1.48560782]
[1766880702666,0.05994827,124.59,124.56,1.48560782]
[1766880703761,0.05994827,124.59,124.57,1.48560782]
[1766880705165,43.43,124.61,124.57,1.48560782]
[1766880706169,0.05985656,124.6,124.58,0.05600764]
[1766880710771,0.05985656,124.6,124.58,1.54161546]
[1766880711672,0.05985656,124.6,124.58,0.05600764]
[1766880723982,9.68,124.61,124.58,29.02600764]
[1766880725091,9.74038031,124.61,124.58,29.02600764]
[1766880726287,9.74038031,124.61,124.58,0.05600764]
[1766880726485,0.06038031,124.61,124.58,0.05600764]
[1766880728983,31.13038031,124.61,124.58,0.05600764]
[1766880735396,32.61598813,124.61,124.58,0.05600764]
[1766880736793,31.13038031,124.61,124.58,0.05600764]
[1766880737399,32.99,124.59,124.53,38.75203705]
[1766880737596,32.99,124.59,124.54,1.48560782]
[1766880737796,32.99,124.59,124.54,30.31560782]
[1766880738498,0.06128715,124.58,124.55,0.05821515]
[1766880743004,32.99,124.59,124.55,30.32382297]
[1766880743803,32.99,124.62,124.56,1.48560782]
[1766880744002,8.93560782,124.63,124.56,1.48560782]
[1766880744003,0.05356353,124.6,124.58,0.05171302]
[1766880746007,33.04356353,124.6,124.58,0.05171302]
[1766880746708,33.04356353,124.6,124.58,0.00171302]
[1766880775538,11.24,124.62,124.58,2.32230095]
[1766880775843,11.24,124.62,124.58,0.00171302]
[1766880776645,0.05167255,124.61,124.58,0.00171302]
[1766880781841,30.26,124.64,124.58,38.18081302]
[1766880782042,30.26,124.64,124.58,40.49968793]
[1766880782846,0.0527607,124.62,124.6,0.05649993]
[1766880785549,30.26,124.66,124.6,33.32708786]
[1766880785850,30.26,124.66,124.6,33.27058793]
[1766880786549,0.05958485,124.64,124.62,0.05319219]
[1766880789148,30.31958485,124.64,124.62,0.00319219]
[1766880789348,30.31958485,124.64,124.58,30.95]
[1766880789744,30.31958485,124.64,124.57,2.32058793]
[1766880789954,32.64017278,124.64,124.56,30.95]
[1766880790152,32.58058793,124.64,124.56,30.95]
[1766880790457,30.32136101,124.61,124.59,0.00330643]
[1766880792951,30.32136101,124.61,124.54,30.95]
[1766880793154,30.32136101,124.61,124.54,33.27058793]
[1766880793155,30.26,124.61,124.54,33.27058793]
[1766880793455,30.26,124.61,124.5,94.62]
[1766880793456,30.26,124.61,124.51,30.95]
[1766880793652,30.26,124.61,124.53,2.32058793]
[1766880793849,30.26,124.61,124.56,0.05672769]
[1766880794055,30.31917016,124.58,124.53,2.32058793]
[1766880795054,30.31917016,124.58,124.54,0.0509697]
[1766880795456,30.31917016,124.58,124.54,0.0009697]
[1766880817570,32.28,124.57,124.54,0.0009697]
[1766880817973,32.28,124.57,124.54,1.48698098]
[1766880823174,32.28,124.57,124.54,0.0009697]
[1766880839890,32.28,124.57,124.51,1.48601128]
[1766880839891,6.07416203,124.56,124.51,1.48601128]
[1766880840097,33.47,124.55,124.5,33.91601128]
[1766880840901,0.05874614,124.54,124.51,0.05661782]
[1766880842001,11.32874614,124.54,124.51,0.05661782]
[1766880842699,11.32874614,124.54,124.51,1.5426291]
[1766880843303,33.47,124.57,124.53,1.48601128]
[1766880843897,33.47,124.57,124.52,1.48601128]
[1766880844298,0.05742582,124.56,124.53,0.05195218]
[1766880844705,33.52742582,124.56,124.53,0.05195218]
[1766880852923,33.52742582,124.56,124.49,39.6642]
[1766880853109,33.47,124.56,124.49,39.6642]
[1766880853618,34.95601128,124.56,124.49,39.6642]
[1766880853821,0.05760686,124.54,124.51,0.05730401]
[1766880859531,33.17760686,124.54,124.51,0.05730401]
[1766880862531,33.17760686,124.54,124.51,1.54331529]
[1766880863036,33.17760686,124.54,124.51,0.05730401]
[1766880870940,33.17760686,124.54,124.5,1.48601128]
[1766880872032,33.17760686,124.54,124.51,0.0561286]
[1766880872843,33.17760686,124.54,124.49,1.48601128]
[1766880873932,33.17760686,124.54,124.5,0.00073565]
[1766880879347,33.12,124.53,124.5,0.00073565]
[1766880899359,33.12,124.53,124.47,2.32401007]
[1766880900262,33.12,124.53,124.46,2.32401007]
[1766880900561,33.47,124.5,124.48,0.05892729]
[1766880903959,35.79401007,124.5,124.48,0.05892729]
[1766880910369,43.02811007,124.5,124.48,0.05892729]
[1766880910664,32.83792973,124.49,124.48,0.05892729]
[1766880941292,38.83546321,124.49,124.48,0.05892729]
[1766880951784,33.68,124.48,124.36,1.48840205]
[1766880951989,33.68,124.42,124.37,1.48840205]
[1766880952888,33.68,124.44,124.39,1.48840205]
[1766880953086,33.68,124.44,124.37,32.39]
[1766880953286,35.16840205,124.44,124.37,33.87840205]
[1766880953894,0.05404117,124.42,124.39,0.05420637]
[1766880955299,9.3,124.41,124.39,0.05420637]
[1766880960601,33.68,124.4,124.39,0.05420637]
[1766880966212,9.3,124.41,124.39,0.05420637]
[1766880967403,42.98,124.41,124.39,0.05420637]
[1766880996034,9.3,124.41,124.39,0.05420637]
[1766880996337,32.69,124.44,124.39,30.93420637]
[1766880997135,0.05234358,124.43,124.39,30.93420637]
[1766881005536,34.22234358,124.43,124.39,0.05420637]
[1766881008745,41.46044358,124.43,124.39,0.05420637]
[1766881012346,34.22234358,124.43,124.39,0.05420637]
[1766881014239,0.05234358,124.43,124.4,33.15]
[1766881016637,0.00234358,124.43,124.4,33.15]
[1766881016947,126.82,124.46,124.4,33.15]
[1766881017245,31.9,124.46,124.4,33.15]
[1766881017845,0.05193613,124.44,124.42,0.05388163]
[1766881022649,31.9,124.48,124.42,33.20388163]
[1766881023547,0.05253046,124.46,124.42,33.20388163]
[1766881026351,31.95253046,124.46,124.42,0.05388163]
[1766881027650,39.18893046,124.46,124.42,0.05388163]
[1766881031259,31.9,124.44,124.4,33.15]
[1766881031552,31.9,124.44,124.35,33.15]
[1766881032346,31.9,124.44,124.39,33.15]
[1766881033356,0.05208786,124.43,124.39,33.15]
[1766881036651,32.12208786,124.43,124.38,0.05500439]
[1766881036860,34.44955631,124.43,124.38,0.05500439]
[1766881037045,32.12208786,124.43,124.38,33.92500439]
[1766881060094,32.12208786,124.43,124.38,35.41458075]
[1766881066597,32.12208786,124.43,124.38,33.92500439]
[1766881073303,32.12208786,124.43,124.38,35.41458075]
[1766881075695,32.12208786,124.43,124.38,33.92500439]
[1766881100316,6.36392131,124.42,124.38,33.92500439]
[1766881100510,32.12208786,124.43,124.38,33.92500439]
[1766881100711,6.36392362,124.42,124.38,33.92500439]
[1766881101010,32.12208786,124.43,124.38,33.92500439]
[1766881101317,6.36392362,124.42,124.38,33.92500439]
[1766881101616,32.12208786,124.43,124.38,33.92500439]
[1766881101810,6.36392104,124.42,124.38,33.92500439]
[1766881102013,32.12208786,124.43,124.38,33.92500439]
[1766881102213,6.36392104,124.42,124.38,33.92500439]
[1766881102414,32.12208786,124.43,124.38,33.92500439]
[1766881102614,6.36392174,124.42,124.38,33.92500439]
[1766881102813,32.12208786,124.43,124.38,33.92500439]
[1766881103011,6.36392174,124.42,124.38,33.92500439]
[1766881103215,32.12208786,124.43,124.38,33.92500439]
[1766881103513,6.36392136,124.42,124.38,33.92500439]
[1766881103713,32.12208786,124.43,124.38,33.92500439]
[1766881103914,6.36392136,124.42,124.38,33.92500439]
[1766881104111,32.12208786,124.43,124.38,33.92500439]
[1766881104315,6.36391232,124.42,124.38,33.92500439]
[1766881104520,32.12208786,124.43,124.38,33.92500439]
[1766881104820,6.36392111,124.42,124.38,33.92500439]
[1766881105020,32.12208786,124.43,124.38,33.92500439]
[1766881105320,6.36392111,124.42,124.38,33.92500439]
[1766881105519,32.12208786,124.43,124.38,33.92500439]
[1766881105817,6.36392396,124.42,124.38,33.92500439]
[1766881106022,32.12208786,124.43,124.38,33.92500439]
[1766881106324,6.36392396,124.42,124.38,33.92500439]
[1766881106519,32.12208786,124.43,124.38,33.92500439]
[1766881106720,6.36392424,124.42,124.38,33.92500439]
[1766881107020,32.12208786,124.43,124.38,33.92500439]
[1766881107215,6.36392278,124.42,124.38,33.92500439]
[1766881107516,32.12208786,124.43,124.38,33.92500439]
[1766881107816,6.36392917,124.42,124.38,33.92500439]
[1766881108124,32.12208786,124.43,124.38,33.92500439]
[1766881108422,6.36393045,124.42,124.38,33.92500439]
[1766881108622,32.12208786,124.43,124.38,33.92500439]
[1766881108822,6.36393979,124.42,124.38,33.92500439]
[1766881109122,32.12208786,124.43,124.38,33.92500439]
[1766881109323,6.36393702,124.42,124.38,33.92500439]
[1766881109519,32.12208786,124.43,124.38,33.92500439]
[1766881109714,6.36394762,124.42,124.38,33.92500439]
[1766881109916,32.12208786,124.43,124.38,33.92500439]
[1766881110210,6.36394762,124.42,124.38,33.92500439]
[1766881110414,32.12208786,124.43,124.38,33.92500439]